fUSD/lending_fUSD_20260121
["ID","MTS","AMOUNT","RATE_DAILY","PERIOD"]
[402909956,1768981844589,-151.0,0.000398,120]
[402909957,1768981844599,-151.0,0.000398,120]
[402909958,1768981844610,-150.0,0.00039802,7]
[402909959,1768981844621,-150.0,0.00039866,7]
[402909960,1768981844630,-150.0,0.00039866,7]
[402909961,1768981844640,-298315.25221988,0.0003988,30]
[402909962,1768981844666,-281.649,0.0003988,30]
[402909963,1768981845182,-3414.81165613,0.00017838,2]
[402909968,1768981845907,-2333.07373526,0.00017838,2]
[402909969,1768981845916,-250.00005406,0.0002975,2]
[402909970,1768981845925,-9956.12085082,0.0003988,30]
[402909971,1768981845937,-14644.78417922,0.0003988,30]
[402909972,1768981845954,-551.928,0.0003988,30]
[402909973,1768981845999,-788.70200644,0.0003988,30]
[402909976,1768981858210,-970.6036,0.00017763,2]
[402909977,1768981858239,-4777.28179139,0.00017851,2]
[402909978,1768981896629,-540.26545562,0.00017073,2]
[402909979,1768981896651,-520.57165728,0.00017073,2]
[402909980,1768981896675,-166.90445799,0.00017223,2]
[402909981,1768981896698,-500.13630918,0.00017373,2]
[402909982,1768981896721,-500.29132853,0.00017373,2]
[402909983,1768981896746,-970.6036,0.00017851,2]
[402909984,1768981897024,-5747.88539139,0.00017863,2]
[402909985,1768981897048,-5747.88539139,0.00017875,2]
[402909986,1768981897071,-5747.88539139,0.00017888,2]
[402909987,1768981897094,-500.0,0.00017899,2]
[402909988,1768981897115,-5747.88539139,0.000179,2]
[402909989,1768981923175,500.75033377,0.00017373,2]
[402909990,1768981926409,500.0,0.00017699,2]
[402909991,1768981955035,341.78103474,0.00017899,2]
[402909992,1768981975759,500.0,0.00017699,2]
[402909993,1768981975789,500.0,0.00017699,2]
[402909994,1768981975828,406.12972559,0.00017699,2]
[402909995,1768981975857,500.0,0.00017699,2]
[402909996,1768981975894,500.0,0.00017699,2]
[402909997,1768981975925,500.0,0.00017699,2]
[402909998,1768981975958,500.0,0.00017699,2]
[402909999,1768981975992,500.0,0.00017699,2]
[402910000,1768981976028,500.0,0.00017699,2]
[402910001,1768981976058,500.0,0.00017699,2]
[402910002,1768981976091,500.0,0.00017699,2]
[402910003,1768981976127,500.0,0.00017699,2]
[402910004,1768981976157,500.0,0.00017699,2]
[402910005,1768981976188,500.0,0.00017699,2]
[402910006,1768981976255,500.0,0.00017699,2]
[402910007,1768981976385,500.0,0.00017699,2]
[402910008,1768981976416,500.0,0.00017699,2]
[402910009,1768981976444,300.0,0.00017699,2]
[402910010,1768981976473,500.0,0.00017699,2]
[402910011,1768981976503,500.0,0.00017699,2]
[402910012,1768981976535,500.0,0.00017699,2]
[402910013,1768981976576,500.0,0.00017699,2]
[402910014,1768981983359,242.00387817,0.00017373,2]
[402910015,1768981991034,61019.02065357,0.000176,2]
[402910016,1768982235074,-800.0,0.000167,2]
[402910017,1768982235099,-1200.0,0.00017372,2]
[402910018,1768982235125,-150.00936225,0.00017372,2]
[402910019,1768982235147,-500.0,0.00017373,2]
[402910020,1768982235169,-500.0,0.00017373,2]
[402910021,1768982235191,-500.0,0.00017373,2]
[402910022,1768982235213,-380.21596322,0.00017373,2]
[402910023,1768982235234,-642.91001441,0.00017373,2]
[402910024,1768982235255,-300.0,0.00017373,2]
[402910025,1768982235278,-500.0,0.00017373,2]
[402910026,1768982316639,686.53,0.00016972,2]
[402910027,1768982408572,500.0,0.00017373,2]
[402910028,1768982466688,248.55036218,0.000167,2]
[402910029,1768982492251,1498.491,0.00017248,2]
[402910030,1768982492463,174.01,0.00017248,2]
[402910033,1768982629105,2214.8453,0.000175,2]
[402910034,1768982663357,1000.0,0.00017,2]
[402910035,1768982668554,1000.0,0.00017,3]
[402910037,1768982806552,376.25233219,0.000175,2]
[402910038,1768982826614,2712.74455901,0.000175,2]
[402910039,1768982831859,258.48917085,0.000175,2]
[402910071,1768983031116,13856.95193589,0.000175,2]
[402910078,1768983031794,-974.0,0.000175,2]
[402910079,1768983031854,-874.0,0.000175,2]
[402910080,1768983031919,-136653.84422036,0.000175,2]
[402910081,1768983032116,-560.87669946,0.000175,2]
[402910082,1768983032141,-7351.31231684,0.000175,2]
[402910083,1768983032176,-569.1924479,0.000175,2]
[402910121,1768983038239,-9465.01389283,0.000175,2]
[402910123,1768983038252,-639.31888652,0.000175,2]
[402910126,1768983038295,-426.61846658,0.000175,2]
[402910127,1768983038307,-480.71237647,0.000175,2]
[402910128,1768983038349,-15067.80474256,0.000175,2]
[402910129,1768983038361,-713.27716413,0.000175,2]
[402910130,1768983038374,-1051.74850456,0.000175,2]
[402910131,1768983038386,-915.68180285,0.000175,2]
[402910132,1768983038405,-10111.1220421,0.000175,2]
[402910133,1768983038462,-7452.56443172,0.000175,2]
[402910136,1768983040003,-5945.50145145,0.000175,2]
[402910137,1768983040015,-786890.45861778,0.000175,2]
[402910138,1768983040025,-875.74044798,0.000175,2]
[402910139,1768983040034,-151.0,0.00017597,2]
[402910140,1768983040045,-350.0,0.00017598,2]
[402910141,1768983040054,-1200.0,0.00017598,2]
[402910142,1768983040064,-489.56996951,0.00017599,2]
[402910143,1768983040074,-491.7483706,0.00017599,2]
[402910144,1768983040085,-312.5001294,0.00017599,2]
[402910145,1768983040094,-500.0,0.00017599,2]
[402910146,1768983040104,-500.0,0.00017599,2]
[402910147,1768983040113,-500.0,0.00017599,2]
[402910148,1768983040123,-500.0,0.00017599,2]
[402910149,1768983040133,-500.0,0.00017599,2]
[402910150,1768983040142,-250.57847658,0.00017599,2]
[402910151,1768983040152,-500.0,0.00017599,2]
[402910152,1768983040161,-500.0,0.00017599,2]
[402910153,1768983040171,-500.0,0.00017599,2]
[402910154,1768983040180,-500.0,0.00017599,2]
[402910155,1768983040190,-500.0,0.00017599,2]
[402910156,1768983040199,-500.0,0.00017599,2]
[402910157,1768983040212,-500.0,0.00017599,2]
[402910158,1768983040222,-500.0,0.00017599,2]
[402910159,1768983040231,-608.61424855,0.00017599,2]
[402910160,1768983040240,-754.43,0.00017599,2]
[402910161,1768983040249,-1000.0,0.000176,2]
[402910162,1768983040259,-150.00674414,0.00017675,2]
[402910163,1768983040268,-505.0,0.00017736,2]
[402910164,1768983040278,-505.0,0.00017782,2]
[402910165,1768983040287,-497.391,0.00017799,2]
[402910166,1768983040296,-1000.0,0.00017799,2]
[402910167,1768983040305,-754.43,0.00017873,2]
[402910168,1768983040315,-505.0,0.00017893,2]
[402910169,1768983040324,-500.0,0.00017899,2]
[402910170,1768983040334,-500.0,0.00017899,2]
[402910171,1768983040343,-500.0,0.00017899,2]
[402910172,1768983040352,-198.58095138,0.00017899,2]
[402910173,1768983040362,-500.0,0.00017899,2]
[402910174,1768983040371,-160.31433437,0.00017899,2]
[402910175,1768983040382,-500.0,0.00017899,2]
[402910176,1768983040391,-500.0,0.00017899,2]
[402910177,1768983040400,-500.0,0.00017899,2]
[402910178,1768983040409,-318.85334381,0.00017899,2]
[402910179,1768983040418,-500.0,0.00017899,2]
[402910180,1768983040427,-369.91760368,0.00017899,2]
[402910181,1768983040436,-500.0,0.00017899,2]
[402910183,1768983040445,-513.68541825,0.00017899,2]
[402910184,1768983040454,-500.0,0.00017899,2]
[402910185,1768983040463,-500.0,0.00017899,2]
[402910186,1768983040471,-500.0,0.00017899,2]
[402910187,1768983040480,-500.0,0.00017899,2]
[402910188,1768983040490,-500.0,0.00017899,2]
[402910189,1768983040499,-500.0,0.00017899,2]
[402910190,1768983040507,-500.0,0.00017899,2]
[402910191,1768983040516,-1447.7838,0.000179,2]
[402910192,1768983040525,-505.0,0.00017949,2]
[402910193,1768983040534,-505.0,0.00017973,2]
[402910194,1768983040543,-500.0,0.00017999,2]
[402910195,1768983040553,-500.0,0.00017999,2]
[402910196,1768983040562,-500.0,0.00017999,2]
[402910197,1768983040572,-580.7093847,0.00017999,2]
[402910198,1768983040582,-5236.70706354,0.00018077,2]
[402910199,1768983040591,-754.43,0.00018147,2]
[402910200,1768983040600,-760.0,0.000182,2]
[402910201,1768983040609,-1425.0,0.00018237,2]
[402910202,1768983040620,-505.0,0.00018247,2]
[402910203,1768983040632,-505.0,0.00018249,2]
[402910204,1768983040642,-1189.0,0.00018261,2]
[402910205,1768983040651,-1339.0,0.00018273,2]
[402910206,1768983040660,-600.0,0.00018292,2]
[402910207,1768983040670,-1882.0,0.00018298,2]
[402910208,1768983040679,-1441.0,0.00018309,2]
[402910209,1768983040688,-1792.0,0.00018334,2]
[402910210,1768983040698,-350.0,0.00018346,2]
[402910211,1768983040707,-687.0,0.00018371,2]
[402910212,1768983040716,-505.0,0.00018376,2]
[402910213,1768983040724,-1623.0,0.00018382,2]
[402910214,1768983040734,-619.0,0.00018407,2]
[402910215,1768983040743,-505.0,0.00018411,2]
[402910216,1768983040752,-1278.0,0.00018418,2]
[402910217,1768983040761,-754.43,0.00018421,2]
[402910218,1768983040770,-1660.0,0.00018444,2]
[402910219,1768983040779,-703.0,0.00018455,2]
[402910220,1768983040788,-845.0,0.0001848,2]
[402910221,1768983040796,-192.0,0.00018491,2]
[402910222,1768983040806,-1458.0,0.00018517,2]
[402910223,1768983040815,-296.5,0.00018526,2]
[402910224,1768983040824,-1618.0,0.00018527,2]
[402910225,1768983040834,-505.0,0.00018543,2]
[402910226,1768983040844,-880.0,0.00018553,2]
[402910227,1768983040853,-505.0,0.00018581,2]
[402910228,1768983040862,-1557.0,0.0001859,2]
[402910229,1768983040872,-505.0,0.00018671,2]
[402910230,1768983040881,-754.43,0.00018695,2]
[402910231,1768983040890,-505.0,0.00018697,2]
[402910232,1768983040899,-505.0,0.000187,2]
[402910233,1768983040908,-505.0,0.00018772,2]
[402910234,1768983040917,-505.0,0.00018836,2]
[402910235,1768983040926,-150.00674414,0.00018855,5]
[402910236,1768983040936,-505.0,0.00018886,2]
[402910237,1768983040945,-505.0,0.00018905,2]
[402910238,1768983040954,-14042.13,0.00018949,2]
[402910239,1768983040964,-754.43,0.00018969,2]
[402910240,1768983040973,-1872.94,0.00019025,2]
[402910241,1768983040983,-200.0,0.00019082,2]
[402910242,1768983040992,-505.0,0.00019162,2]
[402910243,1768983041001,-505.0,0.0001922,2]
[402910244,1768983041011,-754.43,0.00019243,2]
[402910245,1768983041020,-505.0,0.00019258,2]
[402910246,1768983041030,-160.92713246,0.0001929,2]
[402910247,1768983041039,-182.31053033,0.0001929,2]
[402910248,1768983041049,-187.98100774,0.0001929,2]
[402910249,1768983041059,-2041.16178833,0.0001929,2]
[402910250,1768983041068,-250.0,0.0001929,2]
[402910251,1768983041077,-493.77744492,0.0001929,2]
[402910252,1768983041087,-195.0,0.0001929,2]
[402910253,1768983041096,-250.0,0.0001929,2]
[402910254,1768983041106,-1680.0,0.00019304,2]
[402910255,1768983041116,-250.0,0.00019349,2]
[402910256,1768983041125,-1224.63,0.00019363,2]
[402910257,1768983041134,-1224.63,0.00019414,2]
[402910258,1768983041144,-1224.63,0.00019465,2]
[402910259,1768983041153,-1224.63,0.00019516,2]
[402910260,1768983041163,-754.45836186,0.00019517,2]
[402910261,1768983041173,-505.0,0.00019534,2]
[402910262,1768983041182,-505.0,0.00019543,2]
[402910263,1768983041192,-505.0,0.00019554,2]
[402910264,1768983041202,-1224.63,0.00019567,2]
[402910265,1768983041211,-505.0,0.0001958,2]
[402910266,1768983041221,-512.0,0.000196,2]
[402910267,1768983041230,-1224.63,0.00019618,2]
[402910268,1768983041240,-1224.63,0.00019669,2]
[402910269,1768983041249,-1224.63,0.0001972,2]
[402910270,1768983041259,-1224.63,0.00019771,2]
[402910271,1768983041269,-1224.63,0.00019821,2]
[402910272,1768983041278,-1224.63,0.00019872,2]
[402910273,1768983041288,-1224.63,0.00019923,2]
[402910274,1768983041297,-1224.63,0.00019974,2]
[402910275,1768983041307,-2712.74455896,0.00019989,2]
[402910276,1768983041316,-1224.63,0.00020025,2]
[402910277,1768983041325,-150.00674414,0.00020035,10]
[402910278,1768983041335,-1224.63,0.00020076,2]
[402910279,1768983041344,-1224.63,0.00020127,2]
[402910280,1768983041354,-1224.63,0.00020178,2]
[402910281,1768983041363,-1224.63,0.00020229,2]
[402910282,1768983041372,-1224.63,0.0002028,2]
[402910283,1768983041381,-1224.63,0.00020331,2]
[402910284,1768983041390,-150.0,0.000204,7]
[402910285,1768983041399,-600.0,0.00020536,2]
[402910286,1768983041408,-150.0,0.00020584,2]
[402910287,1768983041417,-500.0,0.00020584,2]
[402910288,1768983041427,-500.0,0.00020584,2]
[402910289,1768983041436,-500.0,0.00020584,2]
[402910290,1768983041446,-500.0,0.00020584,2]
[402910291,1768983041455,-500.0,0.00020584,2]
[402910292,1768983041463,-150.0,0.00020584,2]
[402910293,1768983041472,-500.0,0.00020584,2]
[402910294,1768983041481,-500.0,0.00020584,2]
[402910295,1768983041490,-500.0,0.00020584,2]
[402910296,1768983041499,-150.0,0.00020584,2]
[402910297,1768983041509,-500.0,0.00020584,2]
[402910298,1768983041518,-470.0,0.00020584,2]
[402910299,1768983041527,-500.0,0.00020584,2]
[402910300,1768983041536,-500.0,0.00020584,2]
[402910301,1768983041546,-150.0,0.00020584,2]
[402910302,1768983041555,-500.0,0.00020584,2]
[402910303,1768983041564,-150.0,0.00020584,2]
[402910304,1768983041573,-150.0,0.00020584,2]
[402910305,1768983041583,-500.0,0.00020584,2]
[402910306,1768983041593,-500.0,0.00020584,2]
[402910307,1768983041602,-500.0,0.00020584,2]
[402910308,1768983041611,-500.0,0.00020584,2]
[402910309,1768983041621,-150.0,0.00020584,2]
[402910310,1768983041634,-500.0,0.00020584,2]
[402910311,1768983041644,-500.0,0.00020584,2]
[402910312,1768983041653,-500.0,0.00020584,2]
[402910313,1768983041662,-500.0,0.00020584,2]
[402910314,1768983041673,-150.0,0.00020639,2]
[402910315,1768983041682,-500.0,0.00020639,2]
[402910316,1768983041691,-500.0,0.00020639,2]
[402910317,1768983041912,-500.0,0.00020639,2]
[402910318,1768983041939,-500.0,0.00020639,2]
[402910319,1768983041948,-500.0,0.00020639,2]
[402910320,1768983041958,-150.0,0.00020639,2]
[402910321,1768983041968,-500.0,0.00020639,2]
[402910322,1768983041977,-500.0,0.00020639,2]
[402910323,1768983041987,-600.0,0.00020639,2]
[402910324,1768983041996,-500.0,0.00020639,2]
[402910325,1768983042007,-470.0,0.00020639,2]
[402910326,1768983042016,-500.0,0.00020639,2]
[402910327,1768983042025,-500.0,0.00020639,2]
[402910328,1768983042035,-500.0,0.00020639,2]
[402910329,1768983042045,-150.0,0.00020639,2]
[402910330,1768983042055,-500.0,0.00020639,2]
[402910331,1768983042064,-500.0,0.00020639,2]
[402910332,1768983042074,-500.0,0.00020639,2]
[402910333,1768983042084,-505.80435828,0.00020639,2]
[402910334,1768983042095,-150.0,0.00020639,2]
[402910335,1768983042105,-500.0,0.00020639,2]
[402910336,1768983042116,-500.0,0.00020639,2]
[402910337,1768983042126,-500.0,0.00020639,2]
[402910338,1768983042136,-500.0,0.00020639,2]
[402910339,1768983042146,-150.0,0.00020694,2]
[402910340,1768983042155,-500.0,0.00020694,2]
[402910341,1768983042165,-500.0,0.00020694,2]
[402910342,1768983042174,-500.0,0.00020694,2]
[402910343,1768983042184,-502.21050023,0.00020694,2]
[402910344,1768983042194,-500.0,0.00020694,2]
[402910345,1768983042204,-150.0,0.00020694,2]
[402910346,1768983042213,-500.0,0.00020694,2]
[402910347,1768983042223,-500.0,0.00020694,2]
[402910348,1768983042233,-500.0,0.00020694,2]
[402910349,1768983042243,-470.0,0.00020694,2]
[402910350,1768983042252,-500.0,0.00020694,2]
[402910351,1768983042262,-500.0,0.00020694,2]
[402910352,1768983042271,-500.0,0.00020694,2]
[402910353,1768983042281,-269.8196,0.00020694,2]
[402910354,1768983042291,-500.0,0.00020694,2]
[402910355,1768983042301,-500.0,0.00020694,2]
[402910356,1768983042310,-500.0,0.00020694,2]
[402910357,1768983042320,-150.0,0.00020694,2]
[402910358,1768983042329,-500.0,0.00020694,2]
[402910359,1768983042342,-500.0,0.00020694,2]
[402910360,1768983042351,-503.51325329,0.00020694,2]
[402910361,1768983042360,-500.0,0.00020694,2]
[402910362,1768983042369,-150.0,0.00020748,2]
[402910363,1768983042379,-500.0,0.00020748,2]
[402910364,1768983042389,-500.0,0.00020748,2]
[402910365,1768983042398,-500.0,0.00020748,2]
[402910366,1768983042407,-500.0,0.00020748,2]
[402910367,1768983042416,-150.0,0.00020748,2]
[402910368,1768983042425,-500.0,0.00020748,2]
[402910369,1768983042434,-500.0,0.00020748,2]
[402910370,1768983042443,-500.0,0.00020748,2]
[402910371,1768983042452,-470.0,0.00020748,2]
[402910372,1768983042462,-500.0,0.00020748,2]
[402910373,1768983042472,-500.0,0.00020748,2]
[402910374,1768983042481,-500.0,0.00020748,2]
[402910375,1768983042490,-500.0,0.00020748,2]
[402910376,1768983042500,-500.0,0.00020748,2]
[402910377,1768983042509,-500.0,0.00020748,2]
[402910378,1768983042518,-500.0,0.00020748,2]
[402910379,1768983042527,-500.0,0.00020748,2]
[402910380,1768983042536,-540.19453195,0.00020748,2]
[402910381,1768983042546,-242.53853878,0.00020748,2]
[402910382,1768983042555,-262.58907079,0.00020803,2]
[402910383,1768983042565,-276.78818859,0.00020803,2]
[402910384,1768983042574,-500.0,0.00020803,2]
[402910385,1768983042585,-500.0,0.00020803,2]
[402910386,1768983042595,-500.0,0.00020803,2]
[402910387,1768983042604,-265.41416661,0.00020803,2]
[402910388,1768983042613,-500.0,0.00020803,2]
[402910389,1768983042622,-500.0,0.00020803,2]
[402910390,1768983042636,-500.0,0.00020803,2]
[402910391,1768983042645,-470.0,0.00020803,2]
[402910392,1768983042654,-500.0,0.00020803,2]
[402910393,1768983042664,-500.0,0.00020803,2]
[402910394,1768983042673,-500.0,0.00020803,2]
[402910395,1768983042682,-500.0,0.00020803,2]
[402910396,1768983042691,-355.87876924,0.00020803,2]
[402910397,1768983042701,-500.0,0.00020803,2]
[402910398,1768983042710,-425.79840012,0.00020803,2]
[402910399,1768983042719,-500.0,0.00020803,2]
[402910400,1768983042729,-481.20441342,0.00020858,2]
[402910401,1768983042738,-500.0,0.00020858,2]
[402910402,1768983042748,-500.0,0.00020858,2]
[402910403,1768983042758,-500.0,0.00020858,2]
[402910404,1768983042767,-500.0,0.00020858,2]
[402910405,1768983042777,-500.0,0.00020858,2]
[402910406,1768983042787,-470.0,0.00020858,2]
[402910407,1768983042796,-500.0,0.00020858,2]
[402910408,1768983042806,-500.0,0.00020858,2]
[402910409,1768983042814,-500.0,0.00020858,2]
[402910410,1768983042824,-595.87988596,0.00020858,2]
[402910411,1768983042834,-500.0,0.00020858,2]
[402910412,1768983042843,-500.0,0.00020858,2]
[402910414,1768983042852,-500.0,0.00020913,2]
[402910416,1768983042861,-500.0,0.00020913,2]
[402910417,1768983042870,-500.0,0.00020913,2]
[402910418,1768983042880,-500.0,0.00020913,2]
[402910420,1768983042889,-500.42477095,0.00020913,2]
[402910422,1768983042898,-470.0,0.00020913,2]
[402910424,1768983042908,-500.0,0.00020913,2]
[402910425,1768983042917,-405.55613419,0.00020913,2]
[402910426,1768983042927,-500.0,0.00020913,2]
[402910427,1768983042937,-500.0,0.00020913,2]
[402910428,1768983042947,-500.0,0.00020913,2]
[402910429,1768983042956,-500.0,0.00020968,2]
[402910430,1768983042966,-636.90687353,0.00020968,2]
[402910431,1768983042976,-500.0,0.00020968,2]
[402910432,1768983042988,-500.0,0.00020968,2]
[402910433,1768983043001,-470.0,0.00020968,2]
[402910434,1768983043011,-500.0,0.00020968,2]
[402910435,1768983043021,-500.0,0.00020968,2]
[402910436,1768983043031,-500.0,0.00020968,2]
[402910437,1768983043041,-500.0,0.00020968,2]
[402910438,1768983043051,-155.93617098,0.00021021,2]
[402910439,1768983043061,-376.55724883,0.00021022,2]
[402910440,1768983043071,-500.0,0.00021022,2]
[402910441,1768983043080,-500.0,0.00021022,2]
[402910442,1768983043090,-470.0,0.00021022,2]
[402910443,1768983043100,-500.0,0.00021022,2]
[402910444,1768983043110,-500.0,0.00021022,2]
[402910445,1768983043120,-500.0,0.00021022,2]
[402910446,1768983043130,-500.0,0.00021022,2]
[402910447,1768983043141,-150.0,0.00021035,2]
[402910448,1768983043151,-150.0,0.00021035,2]
[402910449,1768983043161,-500.0,0.00021077,2]
[402910450,1768983043171,-500.0,0.00021077,2]
[402910451,1768983043181,-470.0,0.00021077,2]
[402910452,1768983043191,-500.0,0.00021077,2]
[402910453,1768983043201,-500.0,0.00021077,2]
[402910454,1768983043211,-500.0,0.00021077,2]
[402910455,1768983043220,-500.0,0.00021077,2]
[402910456,1768983043230,-274.32,0.00021085,30]
[402910457,1768983043240,-224.73746907,0.0002109,2]
[402910458,1768983043250,-150.0,0.0002109,2]
[402910459,1768983043260,-500.0,0.00021132,2]
[402910460,1768983043269,-500.0,0.00021132,2]
[402910461,1768983043279,-470.0,0.00021132,2]
[402910462,1768983043290,-236.81329298,0.00021132,2]
[402910463,1768983043299,-500.0,0.00021132,2]
[402910464,1768983043309,-441.09974696,0.00021132,2]
[402910465,1768983043319,-500.0,0.00021132,2]
[402910466,1768983043329,-200.49238854,0.00021145,2]
[402910467,1768983043342,-280.42436177,0.00021178,7]
[402910468,1768983043352,-500.0,0.00021187,2]
[402910469,1768983043363,-200.62704032,0.00021187,2]
[402910470,1768983043373,-470.0,0.00021187,2]
[402910471,1768983043382,-500.0,0.00021187,2]
[402910473,1768983043392,-500.0,0.00021187,2]
[402910474,1768983043401,-150.00674414,0.00021216,15]
[402910475,1768983043411,-449.45,0.00021225,2]
[402910476,1768983043420,-643.97502998,0.00021242,2]
[402910477,1768983043430,-470.0,0.00021242,2]
[402910478,1768983043440,-500.0,0.00021242,2]
[402910479,1768983043450,-500.0,0.00021242,2]
[402910480,1768983043460,-470.0,0.00021296,2]
[402910481,1768983043470,-500.0,0.00021296,2]
[402910482,1768983043480,-500.0,0.00021296,2]
[402910483,1768983043490,-470.0,0.00021351,2]
[402910484,1768983043500,-500.0,0.00021351,2]
[402910485,1768983043510,-500.0,0.00021351,2]
[402910486,1768983043521,-470.0,0.00021406,2]
[402910487,1768983043538,-500.0,0.00021406,2]
[402910488,1768983043557,-500.0,0.00021406,2]
[402910489,1768983043570,-470.0,0.00021461,2]
[402910490,1768983043580,-554.0,0.00021461,2]
[402910491,1768983043590,-455.74170161,0.00021461,2]
[402910492,1768983043601,-449.45,0.00021499,2]
[402910493,1768983043611,-470.0,0.00021516,2]
[402910494,1768983043621,-470.0,0.0002157,2]
[402910495,1768983043635,-470.0,0.00021625,2]
[402910496,1768983043646,-470.0,0.0002168,2]
[402910497,1768983043659,-470.0,0.00021735,2]
[402910498,1768983043670,-263.18,0.00021773,2]
[402910499,1768983043682,-470.0,0.00021789,2]
[402910500,1768983043693,-262.29636761,0.00021813,2]
[402910501,1768983043705,-472.17802275,0.00021844,2]
[402910502,1768983043715,-5000.0,0.00021918,2]
[402910503,1768983043724,-500.0,0.00022,14]
[402910504,1768983043734,-150.00674414,0.00022396,20]
[402910505,1768983043744,-2712.74455896,0.00022478,2]
[402910506,1768983043753,-150.0,0.00022599,2]
[402910507,1768983043762,-150.0,0.00022599,2]
[402910508,1768983043772,-150.0,0.00022599,2]
[402910509,1768983043782,-150.0,0.00022599,2]
[402910510,1768983043792,-157.05269749,0.00022599,2]
[402910511,1768983043801,-600.0,0.0002278,2]
[402910512,1768983043811,-8890.04,0.00023368,2]
[402910513,1768983043821,-999.99,0.00023368,2]
[402910514,1768983043830,-150.99,0.00023368,2]
[402910515,1768983043840,-9999.99,0.00023368,2]
[402910516,1768983043850,-4035.79,0.00023368,2]
[402910517,1768983043860,-150.00674414,0.00023576,25]
[402910518,1768983043870,-1000.0,0.00024658,2]
[402910519,1768983043879,-2712.74455896,0.00024967,2]
[402910520,1768983043889,-600.0,0.00025024,2]
[402910521,1768983043899,-262.29636756,0.00025284,2]
[402910522,1768983043909,-400.0,0.00025906,2]
[402910523,1768983043919,-150.00674414,0.00025936,34]
[402910524,1768983043933,-274.32,0.00026131,30]
[402910525,1768983043943,-400.0,0.00026878,2]
[402910526,1768983043953,-150.00674414,0.00027116,38]
[402910527,1768983043964,-600.0,0.00027268,2]
[402910528,1768983043974,-2454.175,0.00027397,30]
[402910529,1768983043984,-2712.74455896,0.00027456,2]
[402910530,1768983043994,-400.0,0.00027849,2]
[402910531,1768983044004,-150.00674414,0.00028296,42]
[402910532,1768983044014,-313.75,0.00028386,14]
[402910533,1768983044024,-155.84,0.00028386,14]
[402910534,1768983044033,-686.53,0.00028753,2]
[402910535,1768983044043,-262.29636756,0.00028754,2]
[402910536,1768983044053,-400.0,0.00028821,2]
[402910537,1768983044067,-595.991,0.0002931,2]
[402910538,1768983044077,-6564.0,0.0002931,2]
[402910539,1768983044087,-150.00674414,0.00029476,46]
[402910540,1768983044098,-600.0,0.00029512,2]
[402910541,1768983044107,-512.0,0.00029667,11]
[402910542,1768983044117,-400.0,0.00029792,2]
[402910543,1768983044126,-150.0,0.000298,14]
[402910544,1768983044136,-2712.74455896,0.00029944,2]
[402910545,1768983044146,-338.52,0.00030063,14]
[402910546,1768983044156,-1000.0,0.00030137,2]
[402910547,1768983044165,-1000.0,0.00030137,2]
[402910548,1768983044176,-1000.0,0.00030137,2]
[402910549,1768983044186,-1000.0,0.00030137,2]
[402910550,1768983044196,-1000.0,0.00030137,2]